Cogmind - Beta 9.3 @@@ ROGUE MODE // 2019.12.20 @ 14:50:43 // Winter2019/RPGLIKE Player: Cassie Rose Result: Destroyed by Y-45 Defender with Beam Rifle Performance ------------- Evolutions (1) 500 Regions Visited (2) 400 Robots Destroyed (58) 290 Value Destroyed (1088) 1088 Prototype IDs (1) 20 Alien Tech Used (0) 0 Bonus (22) 22 TOTAL SCORE: 2320 Bonus ------- High Alert Combat Kills 22 Cogmind --------- Core Integrity 0/650 Matter 300/300 Energy 425/430 System Corruption 0% Temperature Cool (9) Movement Flying (32) Location -9/Materials Parts ------- > --- POWER (2) -------- Improved Ion Engine Improved Ion Engine > --- PROPULSION (2) --- Improved Flight Unit Improved Flight Unit > --- UTILITY (4) ------ Improved Sensor Array Improved Terrain Scanner Seismic Analyzer > --- WEAPON (1) ------- Heavy Hammer > --- INVENTORY (0) ---- (None) Peak State ------------ > --- POWER ------------ Improved Ion Engine Improved Ion Engine > --- PROPULSION ------- Improved Flight Unit Improved Flight Unit > --- UTILITY ---------- Improved Sensor Array Improved Terrain Scanner Seismic Analyzer Medium Armor Plating > --- WEAPON ----------- Heavy Hammer > --- INVENTORY -------- (None) [Rating: 19] Favorites ----------- Power Light Ion Engine Engine Light Ion Engine Propulsion Flight Unit Wheel Wheel Flight Unit Flight Unit Utility Improved Terrain Scanner Device Improved Terrain Scanner Processor Seismic Analyzer Protection Medium Armor Plating Weapon EM Pulse Gun Energy Gun EM Pulse Gun Ballistic Gun Autogun Impact Weapon Heavy Hammer Build | -11 -10 -9 ------- Run | Scr Mat Mat Slots Evolved 5 | 3 1 1 Power 1 | 1 . . Propulsion 1 | 1 . . Utility 3 | 1 1 1 Weapon . | . . . Parts Attached 24 | 7 5 12 Power 6 | 2 . 4 Engine 6 | 2 . 4 Core . | . . . Reactor . | . . . Propulsion 10 | 2 4 4 Treads . | . . . Leg . | . . . Wheel 2 | 2 . . Hover . | . . . Flight 8 | . 4 4 Utility 4 | 2 . 2 Device 2 | 1 . 1 Storage . | . . . Processor 1 | 1 . . Hackware . | . . . Protection 1 | . . 1 Artifact . | . . . Weapon 4 | 1 1 2 Energy Gun 2 | 1 1 . Energy Cannon . | . . . Ballistic Gun 1 | . . 1 Ballistic Cannon . | . . . Launcher . | . . . Special Weapon . | . . . Impact Weapon 1 | . . 1 Slashing Weapon . | . . . Piercing Weapon . | . . . Special Melee Weapon . | . . . Unidentified Prototypes 1 | . . 1 Parts Lost 2 | . 1 1 Power . | . . . Propulsion . | . . . Utility 1 | . . 1 Weapon 1 | . 1 . Highest Loss Streak 1 | . 1 1 Average Slot Usage (%) 97 | . 99 96 Engine 25 | . 27 22 Wheel 4 | . 8 . Flight 20 | . 19 21 Device 16 | . 13 19 Processor 12 | . 13 11 Protection 4 | . . 10 Energy Gun 9 | . 13 3 Impact Weapon 2 | . . 6 Naked Turns . | . . . Heaviest Build 26 | 9 9 26 Greatest Support 32 | 20 23 32 Greatest Overweight (x) 2 | . 2 . Average Overweight (x) . | . . . Largest Inventory Capacity . | . . . Average Capacity . | . . . Most Carried . | . . . Average Carried . | . . . Final Capacity . | . . . Final Carried . | . . . Class Distribution -------------------- 48% | Mutant 21% | Scavenger-Scout 18% | Scavenger-Mutant 11% | Scout Dominant Class ---------------- Mutant | -10/Materials Scavenger-Scout | -9/Materials Resources | -11 -10 -9 ----------- Run | Scr Mat Mat Matter Collected 488 | 262 58 168 Remotely . | . . . Salvage Created 1656 | 111 619 926 Parts 89 | 5 56 28 Haulers Intercepted 4 | . 2 2 Recyclers Shooed 1 | . . 1 Parts Field Recycled . | . . . Retrieved Matter . | . . . Parts Self-Destructed . | . . . Prevented . | . . . Kills | -11 -10 -9 ------- Run | Scr Mat Mat Combat Hostiles Destroyed 30 | . 15 15 Melee 6 | . . 6 Guns 18 | . 13 5 AOE 1 | . 1 . Classes Destroyed 11 | 2 7 2 Worker 3 | . 2 1 Builder 3 | . 1 2 Tunneler 2 | 1 . 1 Hauler 4 | . 2 2 Recycler 7 | 1 . 6 Mechanic 1 | . . 1 Operator 3 | . 2 1 Watcher 5 | . 2 3 Swarmer 12 | . 6 6 Grunt 14 | . 9 5 Sentry 4 | . . 4 Best Kill Streak 11 | 2 6 11 Combat Bots Only 6 | . 6 4 Max Kills in Single Turn 1 | 1 1 1 Gunslinging . | . . . Exploded 1 | . 1 . Melee 1 | . . 1 Uniques/NPCs Destroyed . | . . . Combat | -11 -10 -9 -------- Run | Scr Mat Mat Damage Taken 2779 | . 963 1816 Core 2263 | . 791 1472 Absorbed by Shields . | . . . Redirected to Core 1701 | . 544 1157 Core Remaining (%) 94 | 100 88 . Volleys Fired 151 | 3 93 55 Largest 1 | 1 1 1 Hottest 40 | 40 40 40 Shots Fired 151 | 3 93 55 Gun 151 | 3 93 55 Cannon . | . . . Launcher . | . . . Special . | . . . Kinetic 12 | . . 12 Thermal 47 | . 4 43 Explosive . | . . . Electromagnetic 92 | 3 89 . Robot Hit Streak 8 | 1 8 8 Robot Miss Streak 9 | 1 9 3 Penetration Max . | . . . Secondary Targets . | . . . Shots Hit Robots 175 | 2 55 118 Core Hits 61 | 2 33 26 Critical Hits . | . . . Critical Kills . | . . . Critical Parts Destroyed . | . . . Melee Attacks 85 | . . 85 Impact 85 | . . 85 Slashing . | . . . Piercing . | . . . Sneak Attacks 13 | . . 13 Combat Hostiles . | . . . Follow-up Attacks . | . . . Damage Inflicted 4474 | 28 1098 3348 Guns 1378 | 28 876 474 Cannons . | . . . Explosions 222 | . 222 . Melee 2874 | . . 2874 Ramming . | . . . Kinetic 156 | . . 156 Thermal 573 | . 255 318 Explosive . | . . . Electromagnetic 871 | 28 843 . Impact 2874 | . . 2874 Slashing . | . . . Piercing . | . . . Highest Corruption 1 | . 1 . Average Corruption 1 | . 1 . Corruption Purged . | . . . Overload Shots . | . . . Overflow Damage 967 | . . 967 Projectiles . | . . . Explosions . | . . . Melee 967 | . . 967 Knockbacks 15 | . . 15 Impact 15 | . . 15 Kinetic . | . . . Secondary . | . . . Self-Inflicted Damage 96 | . 96 . Shots 3 | . 3 . Rammed . | . . . Targets Rammed . | . . . Kicked . | . . . Crushed . | . . . Highest Temperature 410 | 20 285 410 Average Temperature 122 | 10 78 176 Received Heat Transfer 1017 | . 327 690 Effects 17 | . 1 16 Shutdowns 5 | . . 5 Energy Bleed 4 | . . 4 Interference 6 | . 1 5 Matter Decay 1 | . . 1 Damage (minor) 1 | . . 1 Siege Activations . | . . . Robots Corrupted 1 | . 1 . Combat Hostiles 1 | . 1 . Parts Fried 18 | . 1 17 Impact Corruptions 43 | . . 43 Robots Melted . | . . . Combat Hostiles . | . . . Parts Melted . | . . . Heat Transferred 1100 | . 375 725 Parts Sabotaged . | . . . Parts Stolen . | . . . Parts Stripped . | . . . Power Chain Reactions 5 | . 5 . Missiles Intercepted . | . . . Alert | -11 -10 -9 ------- Run | Scr Mat Mat Peak Influence 506 | 10 367 506 Average Influence 216 | 3 182 269 Maximum Alert Level 2 | . 1 2 Low Security (%) 47 | 100 53 36 Level 1 45 | . 46 47 Level 2 7 | . . 16 Level 3 . | . . . Level 4 . | . . . Level 5 . | . . . High Security . | . . . Max Security . | . . . Squads Dispatched 6 | . 5 1 Investigation 1 | . 1 . Extermination . | . . . Reinforcement 5 | . 4 1 Assault . | . . . Garrison . | . . . Intercept . | . . . Construction Impeded . | . . . Haulers Reinforced . | . . . Stealth | -11 -10 -9 --------- Run | Scr Mat Mat Distress Signals 4 | . . 4 Communications Jammed . | . . . Distress Signals . | . . . Times Spotted 61 | . 29 32 Peak Tracking Total 9 | . 5 9 Tactical Retreats 3 | . . 3 Traps | -11 -10 -9 ------- Run | Scr Mat Mat Traps Triggered 3 | . 2 1 Indirectly . | . . . Trap Hack Attempts . | . . . Triggered . | . . . Disarmed . | . . . Reprogrammed . | . . . Reused . | . . . Traps Extracted . | . . . Installed . | . . . Triggered . | . . . Machines | -11 -10 -9 ---------- Run | Scr Mat Mat Machines Disabled 5 | . 4 1 Max in Single Turn 1 | . 1 1 Machines Sabotaged . | . . . Garrisons Compromised . | . . . Overloaded Fab Kills . | . . . Fab Network Shutdowns . | . . . Hacking | -11 -10 -9 --------- Run | Scr Mat Mat Machines Accessed . | . . . Terminals . | . . . Fabricators . | . . . Repair Stations . | . . . Recycling Units . | . . . Scanalyzers . | . . . Garrison Access . | . . . Total Hacks . | . . . Successful . | . . . Failed . | . . . Catastrophic . | . . . Database Lockouts . | . . . Manual . | . . . Terminals . | . . . Fabricators . | . . . Repair Stations . | . . . Recycling Units . | . . . Scanalyzers . | . . . Garrison Access . | . . . Terminal Hacks . | . . . Fabricator Hacks . | . . . Repair Station Hacks . | . . . Recycling Unit Hacks . | . . . Scanalyzer . | . . . Garrison Access Hacks . | . . . Unauthorized Hacks . | . . . Terminals . | . . . Fabricators . | . . . Repair Stations . | . . . Recycling Units . | . . . Scanalyzers . | . . . Garrison Access . | . . . Data Cores Recovered . | . . . Used . | . . . Hacking Detections . | . . . Full Trace Events . | . . . Feedback Events . | . . . Feedback Blocked . | . . . Robot Schematics Acquired . | . . . Robots Built . | . . . Matter . | . . . Time . | . . . Total Robot Build Rating . | . . . Part Schematics Acquired . | . . . Parts Built . | . . . Matter . | . . . Time . | . . . Total Part Build Rating . | . . . Parts Repaired . | . . . Time . | . . . Parts Recycled . | . . . Recycled Matter . | . . . Retrieved Matter . | . . . Retrieved Components . | . . . Parts Scanalyzed . | . . . Part Schematics Acquired . | . . . Parts Damaged . | . . . Bothacking | -11 -10 -9 ------------ Run | Scr Mat Mat Used RIF Installer . | . . . Robots Hacked . | . . . Non-combat . | . . . Combat . | . . . Robot Hacks Applied . | . . . Relay Couplers Released . | . . . Robots Rewired . | . . . Allies Hacked . | . . . Hacks Repelled . | . . . Allies | -11 -10 -9 -------- Run | Scr Mat Mat Total Allies . | . . . Largest Group . | . . . Highest-Rated Group . | . . . Highest-Rated Ally . | . . . Total Orders . | . . . Ally Attacks . | . . . Total Damage . | . . . Kills . | . . . Allies Corrupted . | . . . Allies Melted . | . . . Intel | -11 -10 -9 ------- Run | Scr Mat Mat Robot Analysis Total . | . . . Derelict Logs Recovered . | . . . Drone Launches . | . . . Drone Recoveries . | . . . Exploration | -11 -10 -9 ------------- Run | Scr Mat Mat Turns Passed 1636 | 49 855 732 Spaces Moved 1264 | 34 600 630 Core 2 | 2 . . Treads . | . . . Legs . | . . . Wheels 222 | 32 190 . Hover . | . . . Flight 1040 | . 410 630 Fastest Speed 32 | 50 37 32 Average Speed 61 | 78 87 35 Slowest Speed 205 | 80 205 37 Overloaded Moves . | . . . Propulsion Burnouts . | . . . Robots Hopped 1 | . 1 . Cave-ins Triggered . | . . . Exploration Rate (%) 46 | 3 87 50 Regions Visited 2 Branch Regions . Pre-discovered Areas . | . . . Known Exits Taken . | . . . Unknown Exits Taken 2 | 1 1 . Scrap Searched . | . . . Spaces Dug . | . . . Terrain Destroyed 13 | . 13 . Melee . | . . . Projectile . | . . . AOE 13 | . 13 . Actions | -11 -10 -9 --------- Run | Scr Mat Mat Total 1806 | 49 836 921 Wait 189 | 6 102 81 Move 1260 | 33 597 630 Hop 1 | . 1 . Pick Up . | . . . Fast Attach 16 | 7 3 6 Attach . | . . . Detach . | . . . Swap 8 | . 2 6 Drop 14 | . 4 10 Fire 151 | 3 93 55 Melee 85 | . . 85 Ram . | . . . Kick . | . . . Crush . | . . . Escape Stasis . | . . . Rewire . | . . . Trap . | . . . Miscellaneous 82 | . 34 48 Route ------- -11/Scrapyard -10/Materials (discovered 4 exits: [*Mat x2] / [*Min x2]) -9/Materials (discovered 1 exit: [*Mat]) History --------- Turn | Location | Event 1 | -11/Scrapyard | Upgraded with Power slot (x1) 1 | -11/Scrapyard | Upgraded with Propulsion slot (x1) 1 | -11/Scrapyard | Upgraded with Utility slot (x1) 12 | -11/Scrapyard | Discovered new exit (range 16) 50 | -11/Scrapyard | Entered Materials 67 | -10/Materials | Discovered new exit (range 5) 203 | -10/Materials | Discovered new exit (range 14) 237 | -10/Materials | Core integrity fell below 50% 306 | -10/Materials | Build established: Mutant 708 | -10/Materials | Reached level 2 837 | -10/Materials | Discovered new exit (range 11) 851 | -10/Materials | Upgraded with Utility slot (x1) 893 | -10/Materials | Discovered new exit (range 10) 905 | -10/Materials | Entered another Materials area 907 | -9/Materials | Reached level 3 907 | -9/Materials | Upgraded with Utility slot (x1) 991 | -9/Materials | Core integrity fell below 50% 1085 | -9/Materials | Build established: Scavenger-Mutant 1249 | -9/Materials | Reached level 4 1345 | -9/Materials | Discovered new exit (range 16) 1359 | -9/Materials | Core integrity fell below 20% 1392 | -9/Materials | Build established: Scavenger-Scout 1609 | -9/Materials | Reached level 5 1637 | -9/Materials | Destroyed by Y-45 Defender with Beam Rifle Last Messages --------------- 01562_ K-01 Serf collects debris. 01583_ R-06 Scavenger collects Lgt. Armor Plating. 01586_ Sneak attack on R-06 Scavenger. 01586_ Destroyed Tractor Beam. 01586_ Destroyed Lgt. Ion Engine. 01586_ R-06 Scavenger system corrupted by crushing effect. 01586_ R-06 Scavenger knocked back. 01587_ R-06 Scavenger system terminally corrupted. 01596_ G-47 Trooper knocked back. 01608_ Destroyed Lgt. Nuclear Core. 01608_ Destroyed Particle Gun. 01608_ G-47 Trooper system corrupted by crushing effect. 01609_ G-47 Trooper system terminally corrupted. 01609_ Aluminum Leg fried. 01609_ Reached level 5. 01612_ Upgraded: Melee Accuracy (+20) 01621_ Destroyed Sml. Laser. 01621_ G-34 Mercenary system corrupted by crushing effect. 01623_ Med. Armor Plating destroyed. 01623_ Terminal disabled. Map ----- +----------------------------------------------------+ | | | | | | | ?????????????????????????????????????????????????? | | ?????????????????????????????????????????????????? | | ?????????????????????????????????????????????????? | | ?????????????????????????????????????????????????? | | ?????????????????????????????????????????????????? | | ??????????????#????#?????#???????????????????????? | | ????????????? ?????#?###?#??##?? ???????????????? | | ????#????? ?? ?????####?####?## ??? ?????????????? | | ???????????? ??#?## #######??#??##???????????? | | ????#????#?#??? ?? ? ? #??????????? | | #????#????##?? ?? ? ? ? ????????????? | | ?????##??##???? ? ? ?#?#????????? | | ??????#????####+### ###+######? ##?????????? | | ?##?##?? ???? ####### ? ## # ????????? | | ????#?????"?" ?####### """"" ## ? ????????? | | ??##?## ""S?" ?####### """"" ##? # ???????? | | #??#?## "? ?" """ # ? # """"?? ## # ?????????? | | ??##?#? ? ? """ ######? ? ## +? ???????? | | #??#??#? ? """?####### ?## # ?????? | | ?#??#??? ?? ####### ## # ???????? | | ??#################################? # ????????? | | ?### % *%%Y! %! %+ ????? | | #### ##### ?########@########/#######+??????? | | #?## ##### ###### % ## ? ##? ??????? | | ?#?# #?###+##?###### ## """ ##????????? | | ??## ##### *[# T ## "Y" ? #? #?????? | | #### ##### */# " #? ?#?# #?????? | | #??# ##### """? # #######?######???????? | | ####+##+##### """ # ###########?#? ??????? | | ??# """ # """? # #######??#####???????? | | ?## ! T" # ############?# ????????? | | #?# # ? #### ######### ?"?"????????? | | ### # ####?######### ""??????????? | | ?################?######## #####?### "???????????? | | ##???#### """ # ?###############?#?????????????? | | ??####### """ # ?# ? ?###### ????????????? | | #?# # """ # # ?? ? ##?####?????????????? | | ### # + + ? ###????????????????? | | ??#] + # # ? ?? ?#??????????????????? | | #?# # # #?#??###??????????????????????? | | ### ] ######## #???##?? ?????????????????????? | | ??## ######### ????????????????????????????? | | ???# # # ? ?????????????????????????? | | ???# # # ? ????????????????????????? | | ???# + ##"T"### ???? ???????????????????? | | ???# # #?"""#??? ?? ?????????????????????? | | ?### # #?#####??? ##?????????????????????? | +----------------------------------------------------+ Best States ------------- Heat Dissipation 25 Energy Generation 19 Energy Capacity 430 Matter Stores 300 Matter Capacity 300 Sight Range 16 Robot Scan Range 15 Terrain Scan Range 16 Terrain Scan Density 260 Armor Coverage 225 Evasion (%) 63 Item Schematics ----------------- None Robot Schematics ------------------ None Fabricated ------------ Nothing Alien Tech Used ----------------- None Achievements -------------- None Challenges ------------ None RPGLIKE | -11 -10 -9 --------- Run | Scr Mat Mat Levels Raised 4 | . 1 3 XP Earned 9000 | 3000 2340 3660 XP Spent 8995 | 3000 1400 4595 Upgrades 21 | 9 4 8 Power Slot 1 | 1 . . Propulsion Slot 1 | 1 . . Utility Slot 3 | 1 1 1 Core Integrity 1 | . . 1 Mass Support 4 | . 3 1 Sensor Range 1 | 1 . . Terrain Scan Density 2 | 1 . 1 Melee Accuracy 8 | 4 . 4 Protomatter Created 639 | . 256 383 Integrity Restored 1767 | . 733 1034 Core 1612 | . 721 891 Parts 155 | . 12 143 Protomatter Decayed . | . . . Game ------ Seed VariableDeepWeb Manual? 0 Play Time 00:22:41 Cumulative 72.4 hours Start 2019.12.20 @ 14:28:16 End 2019.12.20 @ 14:50:43 Sessions 1 Manual Loads 0 Difficulty Rogue Special Mode Winter2019/RPGLIKE Game No. 118 Rogue 118 Adventurer 0 Explorer 0 Win Type - Total 0 Types 0/0/0/0/0/0/0 Lore% 22 Gallery% 27 Achievement% 26 Wizard Run 0 Options --------- ASCII 0 Keyboard 0 Movement Mouse Keybinds 0 Fullscreen 1 Font 18/SmallcapsGlow Map View 76x50 Tactical HUD 1 Map Filters NONE Filters LOW_CONTRAST(13,24,33)|BRIGHTNESS(120)|SATURATION(80) Steam 1 RUN: 06da370c-33c7-4038-9297-2932fd7dbbf4